bitfinex/quotes_BTCUSD_20250530
["timestamp","ask_amount","ask_price","bid_price","bid_amount"]
[1748629612462,0.20050676,104760.0,104750.0,0.38484325]
[1748629612680,0.20050676,104760.0,104750.0,0.39084325]
[1748629612905,0.20050676,104760.0,104750.0,0.38484325]
[1748629613576,0.20050676,104760.0,104750.0,0.05430224]
[1748629613809,0.29636106,104760.0,104750.0,0.05930224]
[1748629614282,0.29636106,104760.0,104750.0,0.05430224]
[1748629614736,0.29636106,104760.0,104750.0,0.04328853]
[1748629614964,0.29636106,104760.0,104750.0,0.04828853]
[1748629615415,0.29636106,104760.0,104750.0,0.04328853]
[1748629615639,0.29636106,104760.0,104750.0,0.04628853]
[1748629617522,0.29636106,104760.0,104750.0,0.02731139]
[1748629619123,1.35008541,104760.0,104750.0,0.02731139]
[1748629619766,1.37873241,104760.0,104750.0,0.01604755]
[1748629619997,1.79093241,104760.0,104750.0,0.00904755]
[1748629620204,1.79093241,104760.0,104750.0,0.01104755]
[1748629620409,1.79093241,104760.0,104750.0,0.01404755]
[1748629620614,1.79093241,104760.0,104750.0,0.01204755]
[1748629620615,1.78693241,104760.0,104750.0,0.01204755]
[1748629620830,1.78693241,104760.0,104750.0,0.01004755]
[1748629621045,1.78693241,104760.0,104750.0,0.01104755]
[1748629621268,1.78693241,104760.0,104750.0,0.002]
[1748629621496,0.21004326,104740.0,104730.0,0.01126384]
[1748629621708,0.7479307,104740.0,104730.0,0.01126384]
[1748629621935,1.29416298,104740.0,104730.0,0.01126384]
[1748629622151,0.22462423,104720.0,104710.0,0.02627755]
[1748629622352,0.72083853,104720.0,104710.0,0.02627755]
[1748629622978,0.72083853,104720.0,104710.0,0.00902089]
[1748629623204,0.32047853,104720.0,104710.0,0.00902089]
[1748629623426,0.32047853,104720.0,104710.0,0.9046527]
[1748629623427,0.20752338,104720.0,104710.0,0.9046527]
[1748629623637,0.73717952,104750.0,104720.0,0.34]
[1748629623638,0.19094724,104750.0,104720.0,0.34]
[1748629623867,0.19094724,104750.0,104740.0,0.54623228]
[1748629623868,0.30587769,104750.0,104740.0,0.54623228]
[1748629624076,0.21002285,104750.0,104740.0,1.07718129]
[1748629624287,0.2195692,104750.0,104740.0,1.15163571]
[1748629624557,0.2195692,104750.0,104740.0,1.11656027]
[1748629624770,0.0095459,104750.0,104740.0,1.12610708]
[1748629624983,0.02863833,104750.0,104740.0,1.12610708]
[1748629625411,0.21956911,104750.0,104740.0,1.12610708]
[1748629625623,0.23866154,104750.0,104740.0,1.12610708]
[1748629625842,0.23866154,104750.0,104740.0,1.13565722]
[1748629626272,0.23866217,104750.0,104740.0,1.13011041]
[1748629626485,0.22911618,104750.0,104740.0,1.13011059]
[1748629626700,0.22911618,104750.0,104740.0,1.14465767]
[1748629627316,0.22911618,104750.0,104740.0,1.15420466]
[1748629627541,0.22911618,104750.0,104740.0,1.14465767]
[1748629627748,0.22911618,104750.0,104740.0,1.15420466]
[1748629628151,0.22911618,104750.0,104740.0,0.59842539]
[1748629628357,0.2195701,104750.0,104740.0,1.14465767]
[1748629628564,0.2195701,104750.0,104740.0,0.59842539]
[1748629628769,0.2195701,104750.0,104740.0,0.61751919]
[1748629629179,0.2195701,104750.0,104740.0,0.60797238]
[1748629629396,0.001,104760.0,104750.0,1.34037621]
[1748629629582,0.02008988,104760.0,104750.0,2.18858739]
[1748629629833,0.02008988,104760.0,104750.0,1.92041739]
[1748629630008,0.02008969,104760.0,104750.0,1.69520239]
[1748629630159,0.02963477,104760.0,104750.0,1.69520239]
[1748629630354,0.02963477,104760.0,104750.0,1.67256398]
[1748629630554,0.03918012,104760.0,104750.0,1.61217498]
[1748629630789,0.23963821,104760.0,104750.0,1.10719665]
[1748629630988,0.21100344,104760.0,104750.0,0.64496532]
[1748629631191,0.21100344,104760.0,104750.0,0.65451176]
[1748629631545,0.21100344,104760.0,104750.0,0.67334511]
[1748629631676,0.20145809,104760.0,104750.0,0.66379867]
[1748629631878,0.19191256,104760.0,104750.0,0.04129553]
[1748629632084,0.28776686,104760.0,104750.0,0.04129553]
[1748629632284,0.30230771,104760.0,104750.0,0.04129553]
[1748629632486,0.92514266,104760.0,104750.0,0.04129553]
[1748629632947,0.92514266,104760.0,104750.0,0.01502089]
[1748629633161,1.56388616,104760.0,104750.0,0.01502089]
[1748629633808,1.56388616,104760.0,104750.0,0.002]
[1748629634024,1.5652043,104760.0,104750.0,0.002]
[1748629634248,1.5652043,104760.0,104750.0,0.004]
[1748629634651,1.01831295,104760.0,104750.0,0.004]
[1748629634873,0.8114216,104760.0,104750.0,0.004]
[1748629635094,1.9052043,104760.0,104750.0,0.002]
[1748629635315,0.22460417,104730.0,104720.0,0.01126194]
[1748629635531,1.27898982,104730.0,104720.0,0.01131061]
[1748629635741,1.27798982,104730.0,104720.0,0.01131061]
[1748629635953,1.27798982,104730.0,104720.0,4.867e-05]
[1748629636407,1.27798982,104730.0,104720.0,0.00104867]
[1748629637280,0.74109847,104730.0,104720.0,0.00104867]
[1748629637484,1.38050104,104730.0,104720.0,0.00104867]
[1748629638320,1.06766104,104730.0,104720.0,0.00104867]
[1748629638528,1.28762982,104730.0,104720.0,0.00104867]
[1748629638737,0.87534982,104730.0,104720.0,0.00104867]
[1748629638966,1.28758982,104730.0,104720.0,0.00104867]
[1748629639353,0.86534982,104730.0,104720.0,0.00104867]
[1748629639556,0.96518982,104730.0,104720.0,0.00104867]
[1748629639791,1.05770104,104730.0,104720.0,0.00104867]
[1748629640422,0.95786104,104730.0,104720.0,0.00104867]
[1748629640631,1.05770104,104730.0,104720.0,0.00104867]
[1748629642760,0.95786104,104730.0,104720.0,0.00104867]
[1748629642942,0.41829847,104730.0,104720.0,0.00104867]
[1748629643158,0.31845847,104730.0,104720.0,0.00104867]
[1748629645868,0.86534982,104730.0,104720.0,0.00104867]
[1748629646068,0.31845847,104730.0,104720.0,0.00104867]
[1748629646212,0.41096969,104730.0,104720.0,4.867e-05]
[1748629646419,0.41096969,104730.0,104720.0,0.00204867]
[1748629646834,0.31845847,104730.0,104720.0,0.00204867]
[1748629647818,0.31845847,104730.0,104720.0,0.00404867]
[1748629648038,0.31845847,104730.0,104720.0,0.00204867]
[1748629648244,0.31845847,104730.0,104720.0,0.0066687]
[1748629648468,0.31845847,104730.0,104720.0,0.0110382]
[1748629648673,0.31845847,104730.0,104720.0,0.02065825]
[1748629649113,0.31845847,104730.0,104720.0,0.0140382]
[1748629649323,0.00954763,104730.0,104720.0,1.43296174]
[1748629649529,0.03819197,104730.0,104720.0,1.63192649]
[1748629649769,0.03819197,104730.0,104720.0,1.65273697]
[1748629649969,0.02864361,104730.0,104720.0,1.65273697]
[1748629650176,0.03819179,104730.0,104720.0,1.30700662]
[1748629650396,0.2387073,104730.0,104720.0,1.1058441]
[1748629650598,0.2387073,104730.0,104720.0,0.59154425]
[1748629650807,0.23870803,104730.0,104720.0,1.00358425]
[1748629650980,0.21961205,104730.0,104720.0,0.97559578]
[1748629651210,0.21961205,104730.0,104720.0,1.00064355]
[1748629651414,0.21961205,104730.0,104720.0,1.01679211]
[1748629651616,0.21961205,104730.0,104720.0,1.02079211]
[1748629652028,0.01909645,104730.0,104720.0,1.12284775]
[1748629652239,0.01909608,104730.0,104720.0,1.12284775]
[1748629652464,0.02864371,104730.0,104720.0,2.1892891]
[1748629652670,0.02864371,104730.0,104720.0,1.57086675]
[1748629653463,0.22915931,104730.0,104720.0,1.34007177]
[1748629653598,0.02864371,104730.0,104720.0,1.33052335]
[1748629653803,0.21961095,104730.0,104720.0,1.32392577]
[1748629654011,0.21961095,104730.0,104720.0,1.08760587]
[1748629654234,0.21006332,104730.0,104720.0,1.08760605]
[1748629654624,0.21006332,104730.0,104720.0,1.22136583]
[1748629654875,0.21961168,104730.0,104720.0,1.23091492]
[1748629655078,0.21961168,104730.0,104720.0,1.22136583]
[1748629655280,0.21961076,104730.0,104720.0,1.00464355]
[1748629655492,0.2387073,104730.0,104720.0,1.27811483]
[1748629655696,0.21961186,104730.0,104720.0,1.0650795]
[1748629655898,0.21961186,104730.0,104720.0,1.02072617]
[1748629656113,0.21961186,104730.0,104720.0,1.22126074]
[1748629656313,0.21961186,104730.0,104720.0,1.10367612]
[1748629656522,0.2005156,104730.0,104720.0,0.3730509]
[1748629656728,0.2005156,104730.0,104720.0,0.7848509]
[1748629656932,0.2005156,104730.0,104720.0,0.6849309]
[1748629657147,0.2963699,104730.0,104720.0,0.3730509]
[1748629657277,0.2963699,104730.0,104720.0,0.6848509]
[1748629657883,0.19096724,104730.0,104720.0,0.69145049]
[1748629658175,0.19096724,104730.0,104720.0,0.6848509]
[1748629658587,0.19096724,104730.0,104720.0,0.69144991]
[1748629658802,0.19096724,104730.0,104720.0,0.70270122]
[1748629659007,0.19096724,104730.0,104720.0,0.69610221]
[1748629659160,0.19096724,104730.0,104720.0,0.88708769]
[1748629659362,0.20051542,104730.0,104720.0,0.98914809]
[1748629659564,0.01909553,104730.0,104720.0,2.19550934]
[1748629659767,0.02864361,104730.0,104720.0,2.07453803]
[1748629659969,0.01909553,104730.0,104720.0,2.09068437]
[1748629660168,0.01909553,104730.0,104720.0,2.09363538]
[1748629660169,0.02864361,104730.0,104720.0,2.09363538]
[1748629660370,0.02864361,104730.0,104720.0,2.07862268]
[1748629660371,0.03819179,104730.0,104720.0,2.07862268]
[1748629660736,0.01909553,104730.0,104720.0,2.07862268]
[1748629661149,0.03819179,104730.0,104720.0,1.53173133]
[1748629661356,0.04774006,104730.0,104720.0,1.4591052]
[1748629661597,0.22915967,104730.0,104720.0,0.89606776]
[1748629661798,0.02864416,104730.0,104720.0,0.89606776]
[1748629662003,0.2196114,104730.0,104720.0,0.88651913]
[1748629662383,0.2196114,104730.0,104720.0,0.36463557]
[1748629662384,0.2100635,104730.0,104720.0,0.36463557]
[1748629662590,0.2100635,104730.0,104720.0,0.67583557]
[1748629662801,0.2100635,104730.0,104720.0,0.68243458]
[1748629663228,0.2100635,104730.0,104720.0,0.37123418]
[1748629663450,0.3059178,104730.0,104720.0,0.69729959]
[1748629663655,0.3059178,104730.0,104720.0,0.69070018]
[1748629664301,0.2100635,104730.0,104720.0,0.98227008]
[1748629664501,0.2100635,104730.0,104720.0,0.98681908]
[1748629664706,0.2100635,104730.0,104720.0,0.89023475]
[1748629665134,0.20051542,104730.0,104720.0,0.89523475]
[1748629665342,0.20051542,104730.0,104720.0,0.88723475]
[1748629665571,0.20051542,104730.0,104720.0,0.89323475]
[1748629665958,0.19096724,104730.0,104720.0,0.88368566]
[1748629666194,0.19096724,104730.0,104720.0,0.90278411]
[1748629666395,0.19096724,104730.0,104720.0,0.90938375]
[1748629666581,0.19096724,104730.0,104720.0,0.91893291]
[1748629666790,0.20051551,104730.0,104720.0,0.92848191]
[1748629667787,0.20051551,104730.0,104720.0,0.92848301]
[1748629667990,0.20051551,104730.0,104720.0,0.92848312]
[1748629668364,0.20051551,104730.0,104720.0,0.9218822]
[1748629668780,0.20051551,104730.0,104720.0,0.91893899]
[1748629668984,0.20051551,104730.0,104720.0,0.9189394]
[1748629669344,0.20051551,104730.0,104720.0,0.6012932]
[1748629669554,0.20051551,104730.0,104720.0,0.91809917]
[1748629669756,0.20051551,104730.0,104720.0,0.91810391]
[1748629670203,0.20051551,104730.0,104720.0,0.90194411]
[1748629670350,0.19096724,104730.0,104720.0,0.90194411]
[1748629670555,0.19096724,104730.0,104720.0,0.90855557]
[1748629670907,0.19096724,104730.0,104720.0,0.90194411]
[1748629671124,0.19096724,104730.0,104720.0,0.91811527]
[1748629671329,0.19096724,104730.0,104720.0,0.91811505]
[1748629671467,0.19096724,104730.0,104720.0,0.90856605]
[1748629671667,0.19096724,104730.0,104720.0,0.89354115]
[1748629671983,0.19096724,104730.0,104720.0,0.90309015]
[1748629672191,0.19096724,104730.0,104720.0,0.89354112]
[1748629672593,0.19096724,104730.0,104720.0,0.89354103]
[1748629672772,0.19096724,104730.0,104720.0,0.8869195]
[1748629672968,0.19096724,104730.0,104720.0,0.90309077]
[1748629673537,0.19096724,104730.0,104720.0,0.99733049]
[1748629673751,0.19096724,104730.0,104720.0,0.6775814]
[1748629673959,0.19096724,104730.0,104720.0,0.99498172]
[1748629674140,0.19096724,104730.0,104720.0,1.00453113]
[1748629674337,0.19096724,104730.0,104720.0,0.99653113]
[1748629674539,0.19096724,104730.0,104720.0,0.99653102]
[1748629674715,0.19096724,104730.0,104720.0,1.00907992]
[1748629674919,0.17996359,104730.0,104720.0,1.00907992]
[1748629675092,0.17996359,104730.0,104720.0,1.10759114]
[1748629675301,0.17996359,104730.0,104720.0,1.10759124]
[1748629675503,0.17996359,104730.0,104720.0,1.00845759]
[1748629675732,0.17996359,104730.0,104720.0,1.01508057]
[1748629676074,0.17996359,104730.0,104720.0,1.55518917]
[1748629676194,0.17996359,104730.0,104720.0,1.57136152]
[1748629676598,0.17996359,104730.0,104720.0,1.56473807]
[1748629677036,0.17996359,104730.0,104720.0,1.57136153]
[1748629677439,0.17996359,104730.0,104720.0,1.56181309]
[1748629678115,0.17996359,104730.0,104720.0,1.55518917]
[1748629678327,0.17996359,104730.0,104720.0,1.56181345]
[1748629678557,0.17996359,104730.0,104720.0,1.55518917]
[1748629678771,0.17996359,104730.0,104720.0,1.56181333]
[1748629679061,0.17996359,104730.0,104720.0,1.56182135]
[1748629679466,0.17996359,104730.0,104720.0,1.56182116]
[1748629679674,0.17996359,104730.0,104720.0,1.56182121]
[1748629679884,0.15705785,104730.0,104720.0,1.24469262]
[1748629680093,0.15705785,104730.0,104720.0,1.55329285]
[1748629680516,0.15705785,104730.0,104720.0,1.54666039]
[1748629680738,0.15705785,104730.0,104720.0,1.55329361]
[1748629680957,0.15705785,104730.0,104720.0,1.55329324]
[1748629680958,0.20051542,104730.0,104720.0,1.55329324]
[1748629681173,0.21006332,104730.0,104720.0,1.54374425]
[1748629681603,0.21961168,104730.0,104720.0,1.00947725]
[1748629681828,0.21961168,104730.0,104720.0,1.56284133]
[1748629682026,0.21961168,104730.0,104720.0,1.56284161]
[1748629682222,0.21961168,104730.0,104720.0,0.9874646]
[1748629682432,0.21961168,104730.0,104720.0,0.885405]
[1748629682646,0.21961168,104730.0,104720.0,1.43213745]
[1748629682857,0.21961168,104730.0,104720.0,1.44168631]
[1748629683763,0.01909553,104730.0,104720.0,1.46078384]
[1748629683975,0.02864371,104730.0,104720.0,1.44614825]
[1748629684193,0.02864371,104730.0,104720.0,1.45278412]
[1748629684392,0.02864371,104730.0,104720.0,1.54642825]
[1748629684582,0.01909553,104730.0,104720.0,1.63293947]
[1748629684825,0.02864343,104730.0,104720.0,1.63293947]
[1748629685031,0.21960649,104740.0,104730.0,0.20051551]
[1748629685215,0.21005941,104740.0,104730.0,0.74724709]
[1748629685480,0.1970386,104740.0,104730.0,0.20051551]
[1748629685690,0.1970386,104740.0,104730.0,0.8457838]
[1748629685898,0.18853279,104740.0,104730.0,0.8457838]
[1748629686098,0.17898544,104740.0,104730.0,0.65190332]
[1748629686310,0.17898544,104740.0,104730.0,0.77796448]
[1748629686514,0.17898544,104740.0,104730.0,0.77132947]
[1748629686718,0.17898544,104740.0,104730.0,0.22459789]
[1748629686939,0.17898544,104740.0,104730.0,0.23259789]
[1748629687147,0.17898544,104740.0,104730.0,0.24878117]
[1748629687356,0.17898544,104740.0,104730.0,0.36422067]
[1748629687569,0.17898544,104740.0,104730.0,0.5545529]
[1748629687773,0.17898544,104740.0,104730.0,0.56118791]
[1748629687993,0.17898544,104740.0,104730.0,0.57343391]
[1748629688203,0.17898544,104740.0,104730.0,0.37291831]
[1748629688404,0.17898544,104740.0,104730.0,0.56388555]
[1748629688805,0.17898544,104740.0,104730.0,1.11725217]
[1748629688959,0.17898544,104740.0,104730.0,1.11061713]
[1748629689143,0.17898544,104740.0,104730.0,1.11725217]
[1748629689342,0.17898544,104740.0,104730.0,1.11061713]
[1748629689520,0.17850544,104740.0,104730.0,1.20312835]
[1748629689726,0.17850544,104740.0,104730.0,1.22222489]
[1748629690063,0.17850544,104740.0,104730.0,0.90999193]
[1748629690284,0.17850544,104740.0,104730.0,1.2187919]
[1748629690501,0.17850544,104740.0,104730.0,1.21215671]
[1748629690678,0.17850544,104740.0,104730.0,1.2187919]
[1748629690878,0.17850544,104740.0,104730.0,1.02782464]
[1748629691112,0.17850544,104740.0,104730.0,1.02118947]
[1748629691446,0.17850544,104740.0,104730.0,1.01164111]
[1748629691996,0.17850544,104740.0,104730.0,1.20260835]
[1748629692175,0.17850544,104740.0,104730.0,1.00738824]
[1748629692426,0.17850544,104740.0,104730.0,1.20499061]
[1748629692763,0.0095469,104740.0,104730.0,1.56699928]
[1748629692920,0.19096091,104750.0,104740.0,0.21004363]
[1748629693133,0.19096091,104750.0,104740.0,0.74722804]
[1748629693483,0.19096091,104750.0,104740.0,0.83122981]
[1748629693683,0.19096091,104750.0,104740.0,0.76340839]
[1748629693937,0.02863824,104750.0,104740.0,0.77586928]
[1748629694148,0.02863824,104750.0,104740.0,0.89119871]
[1748629694323,0.0190918,104750.0,104740.0,1.23119871]
[1748629694547,0.02863797,104750.0,104740.0,1.23619871]
[1748629694752,0.03818432,104750.0,104740.0,1.3196205]
[1748629694954,0.02863797,104750.0,104740.0,1.3196205]
[1748629695174,0.03818432,104750.0,104740.0,1.31007369]
[1748629695376,0.22911582,104750.0,104740.0,0.68037788]
[1748629695583,0.22911582,104750.0,104740.0,1.22710946]
[1748629695792,0.22911582,104750.0,104740.0,1.25141983]
[1748629696233,0.22911582,104750.0,104740.0,1.02225057]
[1748629696441,0.21956983,104750.0,104740.0,1.00459285]
[1748629696649,0.21956983,104750.0,104740.0,1.02224946]
[1748629697076,0.21002366,104750.0,104740.0,1.02224889]
[1748629697303,0.21002366,104750.0,104740.0,0.47551731]
[1748629697526,0.21002366,104750.0,104740.0,1.03186537]
[1748629698157,0.21002366,104750.0,104740.0,1.00758796]
[1748629698365,0.21002366,104750.0,104740.0,1.03185191]
[1748629698782,0.21002366,104750.0,104740.0,1.12436115]
[1748629698985,0.21002366,104750.0,104740.0,1.10671607]
[1748629699175,0.21002366,104750.0,104740.0,1.12436112]
[1748629699380,0.21002366,104750.0,104740.0,1.02522777]
[1748629699589,0.21002366,104750.0,104740.0,1.00758796]
[1748629699822,0.21002366,104750.0,104740.0,1.03184289]
[1748629700122,0.21002366,104750.0,104740.0,1.03184106]
[1748629700361,0.21002366,104750.0,104740.0,1.00758796]
[1748629701327,0.3171736,104750.0,104740.0,0.36061638]
[1748629701734,0.24057093,104750.0,104740.0,0.68755131]
[1748629701947,0.20047731,104750.0,104740.0,0.68093638]
[1748629702407,0.20047731,104750.0,104740.0,0.69599235]
[1748629702622,0.20047731,104750.0,104740.0,1.26697787]
[1748629702776,0.20047731,104750.0,104740.0,1.26036079]
[1748629702980,0.20047731,104750.0,104740.0,1.24272393]
[1748629703183,0.20047731,104750.0,104740.0,1.3418489]
[1748629703565,0.20047731,104750.0,104740.0,1.35287143]
[1748629703770,0.20047731,104750.0,104740.0,1.24272393]
[1748629704481,0.20047731,104750.0,104740.0,1.26035741]
[1748629704686,0.20047731,104750.0,104740.0,1.25836789]
[1748629704889,0.20047731,104750.0,104740.0,1.28702212]
[1748629705091,0.20047731,104750.0,104740.0,1.26938819]
[1748629705327,0.20047731,104750.0,104740.0,1.36851193]
[1748629705539,0.20047731,104750.0,104740.0,0.72926931]
[1748629705747,0.20047731,104750.0,104740.0,0.74690361]
[1748629705960,0.20047731,104750.0,104740.0,0.74690175]
[1748629706163,0.20047731,104750.0,104740.0,0.74690282]
[1748629706594,0.20047731,104750.0,104740.0,0.72265661]
[1748629706801,0.20047731,104750.0,104740.0,0.74029022]
[1748629707005,0.20047731,104750.0,104740.0,0.72265661]
[1748629707232,0.20047731,104750.0,104740.0,0.40233661]
[1748629707441,0.29633161,104750.0,104740.0,0.71152023]
[1748629707657,0.29633161,104750.0,104740.0,0.72121857]
[1748629708098,0.29633161,104750.0,104740.0,0.39272023]
[1748629708508,0.29633161,104750.0,104740.0,0.71136023]
[1748629708714,0.29633161,104750.0,104740.0,0.39272023]
[1748629708918,0.29633161,104750.0,104740.0,0.71128023]
[1748629709145,0.29633161,104750.0,104740.0,0.73553391]
[1748629709348,0.84306319,104750.0,104740.0,0.71108023]
[1748629709551,0.29633161,104750.0,104740.0,0.73533432]
[1748629709776,0.85760404,104750.0,104740.0,0.07697432]
[1748629709991,0.85760404,104750.0,104740.0,0.04895936]
[1748629710441,0.85760404,104750.0,104740.0,0.04295936]
[1748629710654,0.85760404,104750.0,104740.0,0.03795936]
[1748629710861,0.85760404,104750.0,104740.0,0.02666426]
[1748629711104,0.85760404,104750.0,104740.0,0.03266426]
[1748629711105,0.95011526,104750.0,104740.0,0.03266426]
[1748629711520,0.95011526,104750.0,104740.0,0.02766426]
[1748629712357,0.40338368,104750.0,104740.0,0.02766426]
[1748629712562,1.05599526,104750.0,104740.0,0.02766426]
[1748629712783,1.05599526,104750.0,104740.0,0.02966426]
[1748629714341,0.96348404,104750.0,104740.0,0.02966426]
[1748629714534,0.96348404,104750.0,104740.0,0.02063338]
[1748629716702,0.41675246,104750.0,104740.0,0.02063338]
[1748629716906,0.84306319,104750.0,104740.0,0.02063338]
[1748629717308,0.85760404,104750.0,104740.0,0.02063338]
[1748629717563,0.95011526,104750.0,104740.0,0.02063338]
[1748629717887,0.85760404,104750.0,104740.0,0.02063338]
[1748629719958,0.85760404,104750.0,104740.0,0.0296599]
[1748629720396,0.31087246,104750.0,104740.0,0.0296599]
[1748629720635,0.85760404,104750.0,104740.0,0.0296599]
[1748629720795,0.31087246,104750.0,104740.0,0.0296599]
[1748629721200,0.85760404,104750.0,104740.0,0.0296599]
[1748629722417,0.95011526,104750.0,104740.0,0.0296599]
[1748629724783,0.40338368,104750.0,104740.0,0.0296599]
[1748629724983,0.95011526,104750.0,104740.0,0.0296599]
[1748629725351,0.85760404,104750.0,104740.0,0.0296599]
[1748629729239,0.85760404,104750.0,104740.0,0.03627811]
[1748629729454,0.85760404,104750.0,104740.0,0.05392642]
[1748629729675,0.29633161,104750.0,104740.0,0.05392606]
[1748629730353,0.29633161,104750.0,104740.0,0.05392546]
[1748629730791,0.29633161,104750.0,104740.0,0.05392483]
[1748629731009,0.29633161,104750.0,104740.0,0.05392344]
[1748629731242,0.84306319,104750.0,104740.0,0.05392343]
[1748629732185,0.93557441,104750.0,104740.0,0.053925]
[1748629732414,0.84306319,104750.0,104740.0,0.05392531]
[1748629732655,0.85760404,104750.0,104740.0,0.03627774]
[1748629732891,0.85760404,104750.0,104740.0,0.0296599]
[1748629733345,0.31087246,104750.0,104740.0,0.0296599]
[1748629733569,0.85760404,104750.0,104740.0,0.0296599]
[1748629734476,0.95011526,104750.0,104740.0,0.0296599]
[1748629736042,0.95011526,104750.0,104740.0,0.03628421]
[1748629736217,0.95011526,104750.0,104740.0,0.0296599]
[1748629737339,1.27603526,104750.0,104740.0,0.0296599]
[1748629740233,0.95011526,104750.0,104740.0,0.0296599]
[1748629740435,1.27523526,104750.0,104740.0,0.0296599]
[1748629742723,0.95011526,104750.0,104740.0,0.0296599]
[1748629743212,0.40338368,104750.0,104740.0,0.0296599]
[1748629743416,0.95011526,104750.0,104740.0,0.0296599]
[1748629745233,0.85760404,104750.0,104740.0,0.0296599]
[1748629745622,0.85760404,104750.0,104740.0,0.03628352]
[1748629745855,0.85760404,104750.0,104740.0,0.05394446]
[1748629746389,0.85760404,104750.0,104740.0,0.05394211]
[1748629746779,0.85760404,104750.0,104740.0,0.03628188]
[1748629747014,0.85760404,104750.0,104740.0,0.05394036]
[1748629747247,0.85760404,104750.0,104740.0,0.0296599]
[1748629747661,0.85760404,104750.0,104740.0,0.03628096]
[1748629747875,0.85760404,104750.0,104740.0,0.03628085]
[1748629748278,0.85760404,104750.0,104740.0,0.03628103]
[1748629748518,0.31087246,104750.0,104740.0,0.03628039]
[1748629748734,0.29633161,104750.0,104740.0,0.05393269]
[1748629748867,0.29633161,104750.0,104740.0,0.05393246]
[1748629749071,0.29633161,104750.0,104740.0,0.06522546]
[1748629749490,0.29633161,104750.0,104740.0,0.06522535]
[1748629749690,0.29633161,104750.0,104740.0,0.06522381]
[1748629749892,0.29633161,104750.0,104740.0,0.06522148]
[1748629750107,0.29633161,104750.0,104740.0,0.05860337]
[1748629750429,0.38884283,104750.0,104740.0,0.04757313]
[1748629750595,0.38884283,104750.0,104740.0,0.0652215]
[1748629751027,0.29633161,104750.0,104740.0,0.0652215]
[1748629751574,0.29633161,104750.0,104740.0,0.06521988]
[1748629752165,0.84306319,104750.0,104740.0,0.06521985]
[1748629752367,0.84306319,104750.0,104740.0,0.04757268]
[1748629752663,0.84306319,104750.0,104740.0,0.06521985]
[1748629753035,0.84306319,104750.0,104740.0,0.38669954]
[1748629753270,0.84306319,104750.0,104740.0,0.36905243]
[1748629753450,0.84306319,104750.0,104740.0,0.38669894]
[1748629753801,0.84306319,104750.0,104740.0,0.362435]
[1748629754003,0.84306319,104750.0,104740.0,0.36905231]
[1748629754177,0.95011526,104750.0,104740.0,0.040955]
[1748629754656,0.95011526,104750.0,104740.0,0.04757296]
[1748629754868,0.95011526,104750.0,104740.0,0.040955]
[1748629755080,0.85760404,104750.0,104740.0,0.040955]
[1748629755671,0.85760404,104750.0,104740.0,0.0296599]
[1748629756095,0.31087246,104750.0,104740.0,0.0296599]
[1748629756238,0.85760404,104750.0,104740.0,0.0296599]
[1748629759691,0.31087246,104750.0,104740.0,0.0296599]
[1748629759905,0.90778254,104750.0,104740.0,0.0296599]
[1748629761679,0.90778254,104750.0,104740.0,0.04731234]
[1748629761924,0.85760404,104750.0,104740.0,0.04731257]
[1748629762151,0.31087246,104750.0,104740.0,0.04731039]
[1748629762379,0.31087246,104750.0,104740.0,0.0296599]
[1748629762626,0.31087246,104750.0,104740.0,0.05392888]
[1748629763085,0.31087246,104750.0,104740.0,0.0296599]
[1748629763293,0.31087246,104750.0,104740.0,0.06522286]
[1748629763743,0.85760404,104750.0,104740.0,0.06522251]
[1748629763946,0.31087246,104750.0,104740.0,0.05860304]
[1748629764153,0.31087246,104750.0,104740.0,0.06522105]
[1748629764154,0.40338368,104750.0,104740.0,0.06522105]
[1748629764379,0.95011526,104750.0,104740.0,0.06522137]
[1748629764793,0.95011526,104750.0,104740.0,0.06522174]
[1748629765007,0.95011526,104750.0,104740.0,0.06522204]
[1748629765223,0.95011526,104750.0,104740.0,0.04757337]
[1748629765432,0.95011526,104750.0,104740.0,0.06522035]
[1748629765866,0.85760404,104750.0,104740.0,0.040955]
[1748629766100,0.31087246,104750.0,104740.0,0.0652195]
[1748629766544,0.31087246,104750.0,104740.0,0.06521948]
[1748629767046,0.31087246,104750.0,104740.0,0.06521848]
[1748629767184,0.31087246,104750.0,104740.0,0.06521826]
[1748629767391,0.31087246,104750.0,104740.0,0.06521794]
[1748629767574,0.31087246,104750.0,104740.0,0.06521432]
[1748629767768,0.31087246,104750.0,104740.0,0.05859775]
[1748629767975,0.31087246,104750.0,104740.0,0.040955]
[1748629768190,0.3106671,104750.0,104740.0,0.040955]
[1748629768624,0.3106671,104750.0,104740.0,0.04757133]
[1748629768844,0.3106671,104750.0,104740.0,0.040955]
[1748629769038,0.85739868,104750.0,104740.0,0.05860012]
[1748629769251,0.85739868,104750.0,104740.0,0.040955]
[1748629769468,0.85739868,104750.0,104740.0,0.05859703]
[1748629769627,0.85739868,104750.0,104740.0,0.040955]
[1748629769857,0.85739868,104750.0,104740.0,0.06521259]
[1748629770067,0.85739868,104750.0,104740.0,0.040955]
[1748629770725,0.85739868,104750.0,104740.0,0.04757068]
[1748629770936,0.9499099,104750.0,104740.0,0.040955]
[1748629771166,0.9499099,104750.0,104740.0,0.06521323]
[1748629771368,0.9499099,104750.0,104740.0,0.05859731]
[1748629771576,0.9499099,104750.0,104740.0,0.040955]
[1748629771798,0.9499099,104750.0,104740.0,0.05859881]
[1748629771939,0.9499099,104750.0,104740.0,0.06521485]
[1748629772155,0.9499099,104750.0,104740.0,0.06521506]
[1748629772594,0.9499099,104750.0,104740.0,0.06521503]
[1748629772801,0.9499099,104750.0,104740.0,0.05860211]
[1748629773032,0.9499099,104750.0,104740.0,0.06521977]
[1748629773241,0.9499099,104750.0,104740.0,0.06521375]
[1748629773451,0.9499099,104750.0,104740.0,0.06521179]
[1748629773692,0.9499099,104750.0,104740.0,0.040955]
[1748629773904,0.9499099,104750.0,104740.0,0.05859647]
[1748629774137,0.9499099,104750.0,104740.0,0.040955]
[1748629774543,0.3106671,104750.0,104740.0,0.05859627]
[1748629774750,0.85739868,104750.0,104740.0,0.040955]
[1748629775171,0.85739868,104750.0,104740.0,0.05860431]
[1748629775393,0.85739868,104750.0,104740.0,0.06522274]
[1748629775615,0.3106671,104750.0,104740.0,0.04757351]
[1748629775817,0.3106671,104750.0,104740.0,0.06522289]
[1748629776002,0.3106671,104750.0,104740.0,0.06522303]
[1748629776232,0.3106671,104750.0,104740.0,0.05860521]
[1748629776670,0.32832443,104750.0,104740.0,0.040955]
[1748629776885,0.32832443,104750.0,104740.0,0.04757383]
[1748629777090,0.87505601,104750.0,104740.0,0.040955]
[1748629777701,0.87505601,104750.0,104740.0,0.05860518]
[1748629777904,0.87505601,104750.0,104740.0,0.05860456]
[1748629778116,0.87505601,104750.0,104740.0,0.040955]
[1748629778711,0.87505601,104750.0,104740.0,0.06522525]
[1748629778923,0.87505601,104750.0,104740.0,0.040955]
[1748629779117,0.87505601,104750.0,104740.0,0.05860609]
[1748629779343,0.87505601,104750.0,104740.0,0.040955]
[1748629779730,0.87505601,104750.0,104740.0,0.06522548]
[1748629779929,0.85739868,104750.0,104740.0,0.06522548]
[1748629780199,0.3106671,104750.0,104740.0,0.06522548]